fUSD/lending_fUSD_20251220
["ID","MTS","AMOUNT","RATE_DAILY","PERIOD"]
[399251921,1766207438575,-151.0,0.00011935,2]
[399251922,1766207438588,-151.0,0.00011935,2]
[399251923,1766207438597,-151.0,0.00011935,2]
[399251924,1766207438606,-151.0,0.00011935,2]
[399251925,1766207438616,-500.0,0.00011935,2]
[399251926,1766207438626,-719.92,0.00011935,2]
[399251927,1766207438635,-150.99,0.00012042,2]
[399251928,1766207438644,-9999.99,0.00012042,2]
[399251929,1766207438654,-299.99,0.00012042,2]
[399251930,1766207438663,-999.99,0.00012042,2]
[399251931,1766207438672,-9999.99,0.00012042,2]
[399251932,1766207438681,-150.99,0.00012042,2]
[399251933,1766207438690,-9999.99,0.00012042,2]
[399251934,1766207438700,-33491.4068,0.00012042,2]
[399251935,1766207438709,-1000.0,0.00012042,2]
[399251936,1766207438719,-719.92,0.00012209,2]
[399251937,1766207438729,-2796.59,0.00012329,2]
[399251938,1766207438738,-10374.9,0.00012435,2]
[399251939,1766207438748,-4576.71,0.00012477,2]
[399251940,1766207438757,-1345.01,0.00012479,2]
[399251941,1766207438767,-500.0,0.00012483,2]
[399251942,1766207438776,-719.92,0.00012483,2]
[399251943,1766207438786,-208.25,0.00012485,2]
[399251944,1766207438795,-2421.02,0.00012485,2]
[399251945,1766207438805,-719.92,0.00012757,2]
[399251946,1766207438815,-420.0,0.00012891,2]
[399251947,1766207438824,-195.0,0.00012915,2]
[399251948,1766207438833,-193.0,0.00012915,2]
[399251949,1766207438843,-250.0,0.00013024,2]
[399251950,1766207438853,-195.0,0.00013024,2]
[399251951,1766207438862,-250.0,0.00013024,2]
[399251952,1766207438872,-195.0,0.00013024,2]
[399251953,1766207438881,-719.92,0.00013031,2]
[399251954,1766207438891,-1098.47279508,0.00013175,2]
[399251955,1766207438901,-305206.73787789,0.00013185,2]
[399251956,1766207438910,-719.92,0.00013305,2]
[399251957,1766207438920,-719.92,0.00013579,2]
[399251958,1766207438929,-500.0,0.00013698,2]
[399251959,1766207438939,-344.15406571,0.00013698,2]
[399251960,1766207438948,-500.0,0.00013698,2]
[399251961,1766207438958,-500.0,0.00013698,2]
[399251962,1766207438972,-500.0,0.00013698,2]
[399251963,1766207438982,-500.0,0.00013698,2]
[399251964,1766207438992,-500.0,0.00013698,2]
[399251965,1766207439001,-500.0,0.00013698,2]
[399251966,1766207439011,-465.68349417,0.00013698,2]
[399251967,1766207439020,-500.0,0.00013698,2]
[399251968,1766207439029,-500.0,0.00013698,2]
[399251969,1766207439038,-500.0,0.00013698,2]
[399251970,1766207439048,-500.0,0.00013698,2]
[399251971,1766207439057,-500.0,0.00013698,2]
[399251972,1766207439066,-500.0,0.00013698,2]
[399251973,1766207439076,-500.0,0.00013698,2]
[399251974,1766207439085,-500.0,0.00013698,2]
[399251975,1766207439094,-500.0,0.00013698,2]
[399251976,1766207439104,-500.0,0.00013698,2]
[399251977,1766207439114,-500.0,0.00013698,2]
[399251978,1766207439123,-500.0,0.00013698,2]
[399251979,1766207439132,-500.0,0.00013698,2]
[399251980,1766207439142,-500.0,0.00013698,2]
[399251981,1766207439151,-500.0,0.00013698,2]
[399251982,1766207439161,-500.0,0.00013698,2]
[399251983,1766207439170,-500.0,0.00013698,2]
[399251984,1766207439180,-500.0,0.00013698,2]
[399251985,1766207439189,-500.0,0.00013698,2]
[399251986,1766207439199,-500.0,0.00013698,2]
[399251987,1766207439209,-500.0,0.00013698,2]
[399251988,1766207439218,-500.0,0.00013698,2]
[399251989,1766207439228,-542.9137325,0.00013698,2]
[399251990,1766207439239,-500.0,0.00013698,2]
[399251991,1766207439249,-500.0,0.00013698,2]
[399251992,1766207439258,-500.0,0.00013698,2]
[399251993,1766207439268,-500.0,0.00013698,2]
[399251994,1766207439277,-500.0,0.00013698,2]
[399251995,1766207439286,-500.0,0.00013698,2]
[399251996,1766207439295,-500.0,0.00013698,2]
[399251997,1766207439304,-500.0,0.00013698,2]
[399251998,1766207439313,-500.81759049,0.00013698,2]
[399251999,1766207439322,-500.0,0.00013698,2]
[399252000,1766207439332,-500.0,0.00013698,2]
[399252001,1766207439345,-500.0,0.00013698,2]
[399252002,1766207439355,-500.0,0.00013698,2]
[399252003,1766207439365,-505.36356381,0.00013698,2]
[399252004,1766207439374,-500.0,0.00013698,2]
[399252005,1766207439383,-500.0,0.00013698,2]
[399252006,1766207439393,-500.0,0.00013698,2]
[399252007,1766207439403,-500.0,0.00013698,2]
[399252008,1766207439412,-500.0,0.00013698,2]
[399252009,1766207439422,-500.0,0.00013698,2]
[399252010,1766207439431,-500.0,0.00013698,2]
[399252011,1766207439441,-500.0,0.00013698,2]
[399252012,1766207439451,-500.0,0.00013698,2]
[399252013,1766207439461,-500.0,0.00013698,2]
[399252014,1766207439470,-500.0,0.00013698,2]
[399252015,1766207439480,-500.0,0.00013698,2]
[399252016,1766207439489,-511.85238157,0.00013698,2]
[399252017,1766207439498,-500.0,0.00013698,2]
[399252018,1766207439508,-500.0,0.00013698,2]
[399252019,1766207439517,-500.0,0.00013698,2]
[399252020,1766207439527,-500.0,0.00013698,2]
[399252021,1766207439537,-500.0,0.00013698,2]
[399252022,1766207439547,-500.0,0.00013698,2]
[399252023,1766207439556,-150.25,0.00013698,2]
[399252024,1766207439565,-151.7,0.00013698,2]
[399252025,1766207439575,-445.92,0.00013699,2]
[399252026,1766207439584,-500.0,0.00013699,2]
[399252027,1766207439592,-500.0,0.00013699,2]
[399252028,1766207439602,-500.0,0.00013699,2]
[399252029,1766207439611,-500.0,0.00013699,2]
[399252030,1766207439621,-500.0,0.00013699,2]
[399252031,1766207439630,-500.0,0.00013699,2]
[399252032,1766207439640,-500.0,0.00013699,2]
[399252033,1766207439651,-500.0,0.00013699,2]
[399252034,1766207439661,-500.0,0.00013699,2]
[399252035,1766207439670,-500.0,0.00013699,2]
[399252036,1766207439679,-500.0,0.00013699,2]
[399252037,1766207439688,-500.0,0.00013699,2]
[399252038,1766207439697,-500.0,0.00013699,2]
[399252039,1766207439707,-500.0,0.00013699,2]
[399252040,1766207439716,-500.0,0.00013699,2]
[399252041,1766207439729,-500.0,0.00013699,2]
[399252042,1766207439738,-500.0,0.00013699,2]
[399252043,1766207439747,-500.0,0.00013699,2]
[399252044,1766207439756,-500.0,0.00013699,2]
[399252045,1766207439766,-357.49060572,0.00013699,2]
[399252046,1766207439775,-500.0,0.00013699,2]
[399252047,1766207439784,-500.0,0.00013699,2]
[399252048,1766207439793,-500.0,0.00013699,2]
[399252049,1766207439803,-599.72722483,0.00013699,2]
[399252050,1766207439813,-500.0,0.00013699,2]
[399252051,1766207439823,-500.0,0.00013699,2]
[399252052,1766207439832,-500.0,0.00013699,2]
[399252053,1766207439842,-2748.82,0.000137,2]
[399252055,1766207439851,-2748.82,0.000137,2]
[399252056,1766207439861,-2748.82,0.000137,2]
[399252057,1766207439870,-2748.82,0.000137,2]
[399252058,1766207439879,-2748.82,0.000137,2]
[399252059,1766207439888,-174.74495914,0.00013773,2]
[399252060,1766207439897,-500.50034776,0.00013773,2]
[399252061,1766207439907,-500.0,0.00013773,2]
[399252062,1766207439917,-500.0,0.00013773,2]
[399252063,1766207439926,-500.0,0.00013773,2]
[399252064,1766207439935,-500.0,0.00013773,2]
[399252065,1766207439944,-163.10613259,0.00013773,2]
[399252066,1766207439954,-160.23016142,0.00013773,2]
[399252067,1766207439965,-201.65516925,0.00013773,2]
[399252068,1766207439975,-500.0,0.00013773,2]
[399252069,1766207439986,-500.0,0.00013773,2]
[399252070,1766207439996,-500.0,0.00013773,2]
[399252071,1766207440006,-165.7973653,0.00013773,2]
[399252072,1766207440017,-179.50290541,0.00013773,2]
[399252073,1766207440027,-500.0,0.00013773,2]
[399252074,1766207440038,-500.0,0.00013773,2]
[399252075,1766207440048,-500.0,0.00013773,2]
[399252076,1766207440057,-500.0,0.00013773,2]
[399252077,1766207440067,-536.13646338,0.00013773,2]
[399252078,1766207440077,-500.0,0.00013773,2]
[399252079,1766207440087,-500.0,0.00013773,2]
[399252080,1766207440097,-500.0,0.00013773,2]
[399252081,1766207440110,-500.0,0.00013773,2]
[399252082,1766207440119,-315.42381846,0.00013773,2]
[399252083,1766207440341,-500.0,0.00013773,2]
[399252084,1766207440392,-165.31243658,0.00013773,2]
[399252085,1766207440402,-500.0,0.00013773,2]
[399252086,1766207440414,-500.0,0.00013773,2]
[399252087,1766207440423,-500.0,0.00013773,2]
[399252088,1766207440433,-500.0,0.00013773,2]
[399252089,1766207440442,-216.27337885,0.00013773,2]
[399252090,1766207440452,-719.93,0.00013853,2]
[399252091,1766207440461,-151.0,0.00013887,2]
[399252092,1766207440470,-151.0,0.00013894,2]
[399252093,1766207440482,-151.0,0.00013894,2]
[399252094,1766207440492,-1000.0,0.0001401,2]
[399252095,1766207440504,-500.0,0.000142,2]
[399252096,1766207440514,-500.0,0.000142,2]
[399252097,1766207440524,-1001.90897722,0.00014321,2]
[399252098,1766207440533,-535.09556247,0.00014321,2]
[399252100,1766207440542,-500.48342927,0.00014321,2]
[399252102,1766207440551,-1000.0,0.00014321,2]
[399252104,1766207440561,-572.75082077,0.00014321,2]
[399252105,1766207440570,-1000.0,0.00014321,2]
[399252106,1766207440579,-1000.0,0.00014321,2]
[399252107,1766207440588,-483.93215772,0.00014321,2]
[399252108,1766207440597,-594.53896978,0.00014321,2]
[399252109,1766207440605,-1000.0,0.00014321,2]
[399252110,1766207440615,-1000.0,0.00014321,2]
[399252111,1766207440624,-1002.93994495,0.00014321,2]
[399252112,1766207440635,-1000.0,0.00014321,2]
[399252113,1766207440646,-1000.0,0.00014321,2]
[399252114,1766207440656,-1000.0,0.00014321,2]
[399252115,1766207440666,-1000.0,0.00014321,2]
[399252116,1766207440675,-1000.0,0.00014321,2]
[399252117,1766207440684,-1000.0,0.00014321,2]
[399252118,1766207440693,-500.31513524,0.00014321,2]
[399252119,1766207440702,-1000.0,0.00014321,2]
[399252120,1766207440712,-207.4,0.00014674,2]
[399252121,1766207440722,-150.0,0.00014692,2]
[399252122,1766207440731,-3240.0,0.00014692,2]
[399252123,1766207440741,-166.66,0.000147,2]
[399252124,1766207440751,-500.0,0.00014727,2]
[399252125,1766207440761,-1499.4280445,0.00014754,2]
[399252126,1766207440770,-500.0,0.00014822,2]
[399252127,1766207440779,-151.96,0.00014824,2]
[399252128,1766207440788,-23376.65974029,0.00014848,2]
[399252129,1766207440797,-1500.0,0.00014868,2]
[399252130,1766207440807,-1001.91769362,0.00014868,2]
[399252131,1766207440816,-1502.00400434,0.00014868,2]
[399252132,1766207440826,-365.94030489,0.00014868,2]
[399252133,1766207440835,-1500.0,0.00014868,2]
[399252134,1766207440844,-1501.51415398,0.00014868,2]
[399252135,1766207440854,-502.20443143,0.00014868,2]
[399252136,1766207440863,-1001.58945381,0.00014868,2]
[399252137,1766207440872,-1500.0,0.00014868,2]
[399252138,1766207440881,-1501.18432329,0.00014868,2]
[399252139,1766207440890,-1393.70965969,0.00014868,2]
[399252140,1766207440900,-1500.0,0.00014868,2]
[399252141,1766207440909,-500.0,0.00015041,2]
[399252142,1766207440919,-500.0,0.00015041,2]
[399252143,1766207440928,-166.66,0.00015306,2]
[399252144,1766207440937,-2000.0,0.00015416,2]
[399252145,1766207440946,-2000.0,0.00015416,2]
[399252146,1766207440956,-2002.17420355,0.00015416,2]
[399252147,1766207440967,-1503.12423045,0.00015416,2]
[399252148,1766207440977,-559.79798521,0.00015507,2]
[399252149,1766207440987,-250.0,0.00015645,2]
[399252150,1766207440996,-390.20101573,0.00015725,2]
[399252151,1766207441005,-1000.0,0.00015761,2]
[399252152,1766207441015,-500.0,0.0001582,2]
[399252153,1766207441024,-166.66,0.00015913,2]
[399252154,1766207441034,-2500.0,0.00015964,2]
[399252155,1766207441043,-2500.0,0.00015964,2]
[399252156,1766207441052,-10972.56,0.00016116,2]
[399252157,1766207441061,-225.40367031,0.0001622,2]
[399252158,1766207441070,-500.0,0.000163,2]
[399252159,1766207441080,-162.03877535,0.000163,2]
[399252160,1766207441089,-500.0,0.000163,2]
[399252161,1766207441098,-500.0,0.000163,2]
[399252162,1766207441108,-500.0,0.000163,2]
[399252163,1766207441118,-330.6916765,0.000163,2]
[399252164,1766207441137,-500.0,0.000163,2]
[399252165,1766207441148,-518.77690272,0.000163,2]
[399252166,1766207441157,-334.5464899,0.000163,2]
[399252167,1766207441167,-500.0,0.000163,2]
[399252168,1766207441177,-555.87900727,0.000163,2]
[399252169,1766207441186,-426.51211002,0.000163,2]
[399252170,1766207441196,-500.0,0.000163,2]
[399252171,1766207441206,-500.34670783,0.000163,2]
[399252172,1766207441215,-516.37835686,0.000163,2]
[399252173,1766207441225,-159.43095819,0.000163,2]
[399252174,1766207441234,-161.07996631,0.000163,2]
[399252175,1766207441244,-500.34860131,0.000163,2]
[399252176,1766207441254,-577.20648211,0.000163,2]
[399252177,1766207441264,-166.91561833,0.000163,2]
[399252178,1766207441273,-168.56959317,0.000163,2]
[399252179,1766207441283,-500.0,0.000163,2]
[399252180,1766207441292,-500.0,0.000163,2]
[399252181,1766207441302,-500.0,0.000163,2]
[399252182,1766207441311,-500.36669311,0.000163,2]
[399252183,1766207441321,-220.27121476,0.000163,2]
[399252184,1766207441331,-500.0,0.000163,2]
[399252185,1766207441341,-500.0,0.000163,2]
[399252186,1766207441351,-344.64845159,0.000163,2]
[399252187,1766207441360,-500.0,0.000163,2]
[399252188,1766207441371,-500.30832876,0.000163,2]
[399252189,1766207441381,-500.0,0.000163,2]
[399252190,1766207441391,-529.96646376,0.000163,2]
[399252191,1766207441401,-500.0,0.000163,2]
[399252192,1766207441411,-500.0,0.000163,2]
[399252193,1766207441421,-500.0,0.000163,2]
[399252194,1766207441431,-500.0,0.000163,2]
[399252195,1766207441441,-500.0,0.000163,2]
[399252196,1766207441450,-500.0,0.000163,2]
[399252197,1766207441460,-500.16141079,0.000163,2]
[399252198,1766207441470,-500.0,0.000163,2]
[399252199,1766207441480,-500.0,0.000163,2]
[399252200,1766207441490,-214.74412357,0.00016437,2]
[399252201,1766207441500,-500.0,0.00016437,2]
[399252202,1766207441509,-500.0,0.00016438,2]
[399252203,1766207441519,-500.0,0.00016438,2]
[399252204,1766207441530,-592.36853989,0.00016438,2]
[399252205,1766207441539,-500.0,0.00016438,2]
[399252206,1766207441549,-500.0,0.00016438,2]
[399252207,1766207441559,-500.0,0.00016438,2]
[399252208,1766207441568,-500.0,0.00016438,2]
[399252209,1766207441578,-500.0,0.00016438,2]
[399252210,1766207441587,-500.0,0.00016438,2]
[399252211,1766207441597,-500.0,0.00016438,2]
[399252212,1766207441607,-500.0,0.00016438,2]
[399252213,1766207441616,-500.0,0.00016438,2]
[399252214,1766207441625,-500.0,0.00016438,2]
[399252215,1766207441635,-500.0,0.00016438,2]
[399252216,1766207441644,-645.76730527,0.00016438,2]
[399252217,1766207441653,-500.0,0.00016438,2]
[399252218,1766207441662,-500.0,0.00016438,2]
[399252219,1766207441672,-500.0,0.00016438,2]
[399252220,1766207441681,-500.0,0.00016438,2]
[399252221,1766207441690,-16455.85,0.00016438,2]
[399252222,1766207441700,-164.41,0.0001644,2]
[399252223,1766207441710,-164.41,0.0001644,2]
[399252224,1766207441721,-164.41,0.0001644,2]
[399252225,1766207441730,-3000.0,0.00016512,2]
[399252226,1766207441740,-166.66,0.0001652,2]
[399252227,1766207441751,-204.570509,0.00016734,2]
[399252228,1766207441762,-846.45332019,0.0001683,2]
[399252229,1766207441772,-500.0,0.00016847,2]
[399252230,1766207441784,-500.65137842,0.00016848,2]
[399252231,1766207441794,-1000.87754816,0.00016848,2]
[399252232,1766207441804,-1000.0,0.00016848,2]
[399252233,1766207441816,-1001.13256122,0.00016848,2]
[399252234,1766207441827,-1001.39291005,0.00016848,2]
[399252235,1766207441837,-1000.0,0.00016848,2]
[399252236,1766207441848,-1000.0,0.00016848,2]
[399252237,1766207441859,-1000.96314567,0.00016848,2]
[399252238,1766207441871,-998.88830841,0.00016848,2]
[399252239,1766207441882,-1000.0,0.00016848,2]
[399252240,1766207441891,-501.11789279,0.00016848,2]
[399252241,1766207441900,-1000.0,0.00016848,2]
[399252242,1766207441910,-1000.83354161,0.00016848,2]
[399252243,1766207441919,-1000.0,0.00016848,2]
[399252244,1766207441929,-500.58632088,0.00016848,2]
[399252245,1766207441939,-1000.0,0.00016848,2]
[399252246,1766207441948,-501.13881872,0.00016848,2]
[399252247,1766207441958,-1000.9465121,0.00016848,2]
[399252248,1766207441970,-1000.0,0.00016848,2]
[399252249,1766207441980,-1001.82577211,0.00016848,2]
[399252250,1766207441990,-1000.866265,0.00016848,2]
[399252251,1766207441999,-1000.0,0.00016848,2]
[399252252,1766207442010,-200.0,0.00016864,2]
[399252253,1766207442020,-1229.89607378,0.000169,2]
[399252254,1766207442029,-150.34870908,0.000169,2]
[399252255,1766207442039,-457.0,0.00016959,2]
[399252256,1766207442048,-163.39899626,0.00016973,2]
[399252257,1766207442058,-150.09235231,0.00016973,2]
[399252258,1766207442068,-500.0,0.00016986,2]
[399252259,1766207442077,-500.0,0.00016986,2]
[399252260,1766207442086,-500.0,0.00016986,2]
[399252261,1766207442099,-500.0,0.00016986,2]
[399252262,1766207442108,-164.41,0.00016989,2]
[399252263,1766207442118,-164.41,0.00016989,2]
[399252264,1766207442127,-164.41,0.0001699,2]
[399252265,1766207442137,-164.41,0.0001699,2]
[399252266,1766207442147,-164.41,0.0001699,2]
[399252267,1766207442156,-500.0,0.00016995,2]
[399252268,1766207442166,-487.95660004,0.00016995,2]
[399252269,1766207442175,-151.0,0.00016997,2]
[399252270,1766207442185,-1500.0,0.00016998,2]
[399252271,1766207442194,-1500.0,0.00016998,2]
[399252272,1766207442204,-1527.47643038,0.00016998,2]
[399252273,1766207442214,-500.0,0.00016999,2]
[399252274,1766207442223,-500.0,0.00016999,2]
[399252275,1766207442233,-84298.9325526,0.00016999,2]
[399252276,1766207442243,-416515.74596377,0.00016999,3]
[399252277,1766207442253,-998673.26686112,0.00017,2]
[399252278,1766207442263,-416852.28611018,0.00017,2]
[399252279,1766207442273,-216.0,0.00017,2]
[399252280,1766207442283,-2000.0,0.00017,2]
[399252281,1766207442296,-3229.3160132,0.00017,2]
[399252282,1766207442306,-250.0,0.00017,2]
[399252283,1766207442318,-1258.91027464,0.00017,2]
[399252284,1766207442329,-200.0,0.00017,2]
[399252285,1766207442339,-200.0,0.00017,2]
[399252286,1766207442349,-1246.25203013,0.00017,2]
[399252287,1766207442358,-200.0,0.00017,2]
[399252288,1766207442368,-413.79601164,0.00017,2]
[399252289,1766207442378,-200.0,0.00017,2]
[399252290,1766207442387,-166.66,0.00017037,2]
[399252291,1766207442398,-855.16426766,0.0001706,2]
[399252292,1766207442407,-407.52,0.00017075,2]
[399252293,1766207442417,-188.65,0.000171,7]
[399252294,1766207442427,-166.66,0.00017126,2]
[399252295,1766207442436,-200.0,0.0001717,2]
[399252296,1766207442446,-200.0,0.0001717,2]
[399252297,1766207442456,-200.0,0.0001717,2]
[399252298,1766207442467,-200.0,0.0001717,2]
[399252299,1766207442476,-276.0,0.00017199,2]
[399252300,1766207442490,-200.0,0.00017342,2]
[399252301,1766207442499,-200.0,0.00017342,2]
[399252302,1766207442509,-200.0,0.00017342,2]
[399252303,1766207442519,-200.0,0.00017342,2]
[399252304,1766207442529,-313.1273443,0.00017353,2]
[399252305,1766207442539,-191.6701968,0.00017396,2]
[399252306,1766207442549,-202.35078702,0.00017413,2]
[399252307,1766207442559,-1600.0,0.00017434,2]
[399252308,1766207442568,-8626.9,0.00017482,2]
[399252309,1766207442578,-1000.0,0.00017512,2]
[399252310,1766207442588,-200.0,0.00017515,2]
[399252311,1766207442598,-200.0,0.00017515,2]
[399252312,1766207442607,-200.0,0.00017515,2]
[399252313,1766207442617,-150.97899754,0.00017672,2]
[399252314,1766207442626,-500.0,0.00017672,2]
[399252315,1766207442635,-500.0,0.00017672,2]
[399252316,1766207442645,-150.0,0.00017672,2]
[399252317,1766207442654,-150.0,0.00017672,2]
[399252318,1766207442664,-500.0,0.00017672,2]
[399252319,1766207442673,-500.0,0.00017672,2]
[399252320,1766207442685,-150.0,0.00017672,2]
[399252321,1766207442695,-150.0,0.00017672,2]
[399252322,1766207442704,-150.0,0.00017672,2]
[399252323,1766207442714,-150.0,0.00017672,2]
[399252324,1766207442724,-150.0,0.00017672,2]
[399252326,1766207442734,-500.0,0.00017672,2]
[399252327,1766207442743,-150.0,0.00017672,2]
[399252328,1766207442752,-500.0,0.00017672,2]
[399252329,1766207442762,-150.0,0.00017672,2]
[399252330,1766207442771,-500.0,0.00017672,2]
[399252331,1766207442780,-500.0,0.00017672,2]
[399252332,1766207442790,-539.0,0.00017672,2]
[399252333,1766207442799,-151.04245761,0.00017672,2]
[399252334,1766207442922,-500.0,0.00017672,2]
[399252335,1766207442932,-500.0,0.00017672,2]
[399252336,1766207442941,-500.0,0.00017672,2]
[399252337,1766207442951,-441.0,0.00017672,2]
[399252338,1766207442960,-152.49962646,0.00017672,2]
[399252339,1766207442973,-500.0,0.00017672,2]
[399252340,1766207442983,-150.0,0.00017672,2]
[399252341,1766207442991,-500.0,0.00017672,2]
[399252342,1766207443000,-500.0,0.00017672,2]
[399252343,1766207443009,-500.0,0.00017672,2]
[399252344,1766207443018,-500.0,0.00017672,2]
[399252345,1766207443028,-500.0,0.00017672,2]
[399252346,1766207443039,-510.0,0.00017672,2]
[399252347,1766207443049,-500.0,0.00017672,2]
[399252348,1766207443058,-150.0,0.00017672,2]
[399252349,1766207443066,-500.0,0.00017672,2]
[399252350,1766207443076,-500.0,0.00017672,2]
[399252351,1766207443085,-500.0,0.00017672,2]
[399252352,1766207443094,-150.0,0.00017672,2]
[399252353,1766207443103,-866.0,0.00017672,2]
[399252354,1766207443112,-150.0,0.00017672,2]
[399252355,1766207443122,-500.0,0.00017672,2]
[399252356,1766207443130,-500.0,0.00017672,2]
[399252357,1766207443139,-500.0,0.00017672,2]
[399252358,1766207443148,-150.0,0.00017672,2]
[399252359,1766207443158,-1199.0,0.00017672,2]
[399252360,1766207443166,-200.0,0.0001769,2]
[399252361,1766207443176,-200.0,0.0001769,2]
[399252362,1766207443186,-200.0,0.0001769,2]
[399252363,1766207443195,-407.52,0.00017732,2]
[399252364,1766207443203,-500.0,0.00017808,2]
[399252365,1766207443213,-500.0,0.00017809,2]
[399252366,1766207443223,-500.0,0.00017809,2]
[399252367,1766207443233,-150.0,0.00017809,2]
[399252368,1766207443243,-150.0,0.00017809,2]
[399252369,1766207443252,-500.0,0.00017809,2]
[399252370,1766207443261,-500.0,0.00017809,2]
[399252371,1766207443270,-150.0,0.00017809,2]
[399252372,1766207443279,-150.0,0.00017809,2]
[399252373,1766207443288,-150.0,0.00017809,2]
[399252374,1766207443297,-150.0,0.00017809,2]
[399252375,1766207443307,-150.0,0.00017809,2]
[399252376,1766207443315,-500.0,0.00017809,2]
[399252377,1766207443324,-201.2765323,0.00017809,2]
[399252378,1766207443334,-500.0,0.00017809,2]
[399252379,1766207443343,-150.0,0.00017809,2]
[399252380,1766207443353,-528.93385388,0.00017809,2]
[399252381,1766207443362,-500.0,0.00017809,2]
[399252382,1766207443372,-539.0,0.00017809,2]
[399252383,1766207443381,-500.0,0.00017809,2]
[399252384,1766207443391,-500.0,0.00017809,2]
[399252385,1766207443400,-500.0,0.00017809,2]
[399252387,1766207443410,-441.0,0.00017809,2]
[399252390,1766207443429,-500.0,0.00017809,2]
[399252391,1766207443438,-150.0,0.00017809,2]
[399252392,1766207443447,-500.0,0.00017809,2]
[399252393,1766207443457,-150.0,0.00017809,2]
[399252394,1766207443466,-500.0,0.00017809,2]
[399252395,1766207443476,-500.0,0.00017809,2]
[399252396,1766207443485,-500.0,0.00017809,2]
[399252397,1766207443494,-500.0,0.00017809,2]
[399252398,1766207443503,-510.0,0.00017809,2]
[399252399,1766207443512,-500.0,0.00017809,2]
[399252400,1766207443522,-150.0,0.00017809,2]
[399252401,1766207443531,-500.0,0.00017809,2]
[399252402,1766207443540,-500.0,0.00017809,2]
[399252403,1766207443549,-500.0,0.00017809,2]
[399252404,1766207443559,-866.0,0.00017809,2]
[399252405,1766207443568,-500.0,0.00017809,2]
[399252406,1766207443577,-500.0,0.00017809,2]
[399252407,1766207443587,-500.0,0.00017809,2]
[399252408,1766207443596,-1199.0,0.00017809,2]
[399252409,1766207443608,-23376.65974029,0.00017855,2]
[399252410,1766207443617,-500.0,0.00017945,2]
[399252411,1766207443626,-501.70181775,0.00017946,2]
[399252412,1766207443637,-500.0,0.00017946,2]
[399252413,1766207443646,-150.0,0.00017946,2]
[399252414,1766207443655,-231.95831861,0.00017946,2]
[399252415,1766207443664,-500.0,0.00017946,2]
[399252416,1766207443672,-500.0,0.00017946,2]
[399252417,1766207443681,-150.0,0.00017946,2]
[399252418,1766207443690,-150.0,0.00017946,2]
[399252419,1766207443699,-150.0,0.00017946,2]
[399252420,1766207443709,-164.7217925,0.00017946,2]
[399252421,1766207443718,-150.0,0.00017946,2]
[399252422,1766207443728,-467.42824898,0.00017946,2]
[399252423,1766207443737,-500.0,0.00017946,2]
[399252424,1766207443747,-256.61900573,0.00017946,2]
[399252425,1766207443756,-500.0,0.00017946,2]
[399252426,1766207443765,-539.0,0.00017946,2]
[399252427,1766207443775,-500.0,0.00017946,2]
[399252428,1766207443784,-500.0,0.00017946,2]